bitfinex/quotes_BTCUSD_20241119
["timestamp","ask_amount","ask_price","bid_price","bid_amount"]
[1731995658008,0.16445655,91719.0,91708.0,0.209041]
[1731995658263,0.16445655,91719.0,91708.0,0.29014655]
[1731995658481,0.01,91725.0,91708.0,0.4155964]
[1731995658709,0.01,91725.0,91708.0,0.4092091]
[1731995659374,0.0004,91729.0,91708.0,0.6352345]
[1731995659785,0.0004,91729.0,91708.0,0.4904091]
[1731995660009,0.0004,91729.0,91708.0,0.57151465]
[1731995660209,0.0004,91729.0,91708.0,0.53703769]
[1731995660655,0.0004,91729.0,91708.0,0.63442662]
[1731995660916,0.0004,91729.0,91708.0,0.5808922]
[1731995662018,0.0004,91729.0,91708.0,0.60308195]
[1731995663391,0.0004,91729.0,91708.0,0.63108195]
[1731995663828,0.0004,91729.0,91708.0,0.60308195]
[1731995664045,0.0004,91729.0,91708.0,0.64308195]
[1731995664290,1e-06,91709.0,91708.0,0.69108195]
[1731995664484,1e-06,91709.0,91708.0,0.65108195]
[1731995664923,1e-06,91709.0,91708.0,0.66408195]
[1731995665845,1e-06,91709.0,91708.0,0.69208195]
[1731995666095,1e-06,91709.0,91708.0,0.66408195]
[1731995666316,1e-06,91709.0,91708.0,0.69208195]
[1731995666540,1e-06,91709.0,91708.0,0.66408195]
[1731995666780,1e-06,91709.0,91708.0,0.69208195]
[1731995666991,1e-06,91709.0,91708.0,0.67908195]
[1731995667617,1e-06,91709.0,91708.0,0.69208195]
[1731995668061,1e-06,91709.0,91708.0,0.67908195]
[1731995668502,1e-06,91709.0,91708.0,0.69208195]
[1731995669193,1e-06,91709.0,91708.0,0.69408195]
[1731995669897,1e-06,91709.0,91708.0,0.70208195]
[1731995670158,1e-06,91709.0,91708.0,0.69208195]
[1731995670352,1e-06,91709.0,91708.0,0.70208195]
[1731995672419,0.0008555,91709.0,91708.0,0.58770101]
[1731995672865,0.0008555,91709.0,91708.0,0.69674201]
[1731995673312,0.0008555,91709.0,91708.0,0.68674201]
[1731995673541,0.0008555,91709.0,91708.0,0.61574201]
[1731995676094,0.0008555,91709.0,91708.0,0.53454201]
[1731995677400,0.0008555,91709.0,91708.0,0.49354201]
[1731995677814,0.0008555,91709.0,91708.0,0.53354201]
[1731995678018,0.0008555,91709.0,91708.0,0.50554201]
[1731995678244,0.0008555,91709.0,91708.0,0.49354201]
[1731995678476,0.0008555,91709.0,91708.0,0.50554201]
[1731995678945,0.0008555,91709.0,91708.0,0.49354201]
[1731995679356,0.0008555,91709.0,91708.0,0.52654201]
[1731995679780,0.0008555,91709.0,91708.0,0.49854201]
[1731995680004,0.0008555,91709.0,91708.0,0.51554201]
[1731995680823,0.0008555,91709.0,91708.0,0.49854201]
[1731995681049,0.0008555,91709.0,91708.0,0.52654201]
[1731995681270,0.0008555,91709.0,91708.0,0.52154201]
[1731995681477,0.0008555,91709.0,91708.0,0.53154201]
[1731995681889,0.0008555,91709.0,91708.0,0.52154201]
[1731995682105,0.0008555,91709.0,91708.0,0.53054201]
[1731995682312,0.0008555,91709.0,91708.0,0.45564388]
[1731995682533,0.0008555,91709.0,91708.0,0.52747989]
[1731995682747,0.0008555,91709.0,91708.0,0.55447989]
[1731995682963,0.0008555,91709.0,91708.0,0.55647989]
[1731995683169,0.0008555,91709.0,91708.0,0.52947989]
[1731995683395,0.0008555,91709.0,91708.0,0.54147989]
[1731995684272,0.0008555,91709.0,91708.0,0.52747989]
[1731995684704,0.0008555,91709.0,91708.0,0.52947989]
[1731995684904,0.0008555,91709.0,91708.0,0.53118869]
[1731995685183,0.0008555,91709.0,91708.0,0.52918869]
[1731995685386,0.0008555,91709.0,91708.0,0.53818869]
[1731995685645,0.0008555,91709.0,91708.0,0.56518869]
[1731995687371,0.0008555,91709.0,91708.0,0.52918869]
[1731995687573,0.0008555,91709.0,91708.0,0.53718869]
[1731995688198,0.0008555,91709.0,91708.0,0.52918869]
[1731995688412,0.0008555,91709.0,91708.0,0.53618869]
[1731995688586,0.0008555,91709.0,91708.0,0.56118869]
[1731995688721,0.0008555,91709.0,91708.0,0.53618869]
[1731995689137,0.0008555,91709.0,91708.0,0.55918869]
[1731995689769,0.0008555,91709.0,91708.0,0.53618869]
[1731995690192,0.0008555,91709.0,91708.0,0.55718869]
[1731995690415,0.0008555,91709.0,91708.0,0.55018869]
[1731995690632,0.0008555,91709.0,91708.0,0.55718869]
[1731995690845,0.0008555,91709.0,91708.0,0.47635268]
[1731995694854,0.0008555,91709.0,91708.0,0.45535268]
[1731995695280,0.0008555,91709.0,91708.0,0.56318869]
[1731995695498,0.0008555,91709.0,91708.0,0.52918869]
[1731995695707,0.0008555,91709.0,91708.0,0.55218869]
[1731995695928,0.0008555,91709.0,91708.0,0.47135268]
[1731995696598,0.0008555,91709.0,91708.0,0.44835268]
[1731995696830,0.0008555,91709.0,91708.0,0.48235268]
[1731995697275,0.0008555,91709.0,91708.0,0.47335268]
[1731995697505,0.0008555,91709.0,91708.0,0.50517892]
[1731995697722,0.0008555,91709.0,91708.0,0.48435268]
[1731995697957,0.0008555,91709.0,91708.0,0.56518869]
[1731995698174,0.0008555,91709.0,91708.0,0.56101481]
[1731995698381,0.0008555,91709.0,91708.0,0.57201481]
[1731995698797,0.0008555,91709.0,91708.0,0.60001481]
[1731995699438,0.0008555,91709.0,91708.0,0.57201481]
[1731995699866,0.0008555,91709.0,91708.0,0.58901481]
[1731995700094,0.0008555,91709.0,91708.0,0.57201481]
[1731995701380,0.0008555,91709.0,91708.0,0.60001481]
[1731995701602,0.0008555,91709.0,91708.0,0.57201481]
[1731995701818,0.0008555,91709.0,91708.0,0.56101481]
[1731995702027,0.0008555,91709.0,91708.0,0.58801481]
[1731995703332,0.0008555,91709.0,91708.0,0.59801481]
[1731995706247,0.0008555,91709.0,91708.0,0.89015286]
[1731995706679,0.0008555,91709.0,91708.0,0.88015286]
[1731995707342,0.0008555,91709.0,91708.0,0.89115286]
[1731995707551,0.0008555,91709.0,91708.0,0.89223453]
[1731995707760,0.0008555,91709.0,91708.0,0.86523453]
[1731995707987,0.0008555,91709.0,91708.0,0.89323453]
[1731995708224,0.0008555,91709.0,91708.0,0.60001481]
[1731995708881,5e-07,91709.0,91708.0,0.83325082]
[1731995709105,0.0004,91729.0,91712.0,0.143]
[1731995709338,0.0004,91729.0,91720.0,0.38069902]
[1731995709553,0.0004,91729.0,91720.0,0.52158769]
[1731995709775,0.0004,91729.0,91720.0,0.81472109]
[1731995710870,0.0004,91729.0,91720.0,0.81672109]
[1731995711083,0.0004,91729.0,91720.0,0.52358769]
[1731995711294,0.0004,91729.0,91720.0,0.89572109]
[1731995711711,0.0004,91729.0,91720.0,0.60258769]
[1731995712165,0.0004,91729.0,91720.0,0.61458769]
[1731995712584,0.0004,91729.0,91720.0,0.94072109]
[1731995712802,0.0004,91729.0,91720.0,0.64758769]
[1731995713225,0.0004,91729.0,91720.0,0.69092564]
[1731995713883,0.0004,91729.0,91720.0,0.66792564]
[1731995714566,0.01161406,91728.0,91727.0,0.297919]
[1731995714810,0.0004,91729.0,91728.0,0.219017]
[1731995715015,0.0004,91729.0,91728.0,0.36186825]
[1731995715223,0.0008541,91737.0,91736.0,0.298808]
[1731995715440,0.0008541,91737.0,91736.0,0.56954257]
[1731995716520,1e-07,91737.0,91736.0,0.64824257]
[1731995716742,1e-07,91737.0,91736.0,0.65424257]
[1731995716960,1e-07,91737.0,91736.0,0.66424257]
[1731995717253,1e-07,91737.0,91736.0,0.34407055]
[1731995717489,1e-07,91737.0,91736.0,0.43690656]
[1731995717714,1e-07,91737.0,91736.0,0.65256832]
[1731995717929,1e-07,91737.0,91736.0,0.73340433]
[1731995718154,1e-07,91737.0,91736.0,0.51774257]
[1731995718377,1e-07,91737.0,91736.0,0.73340433]
[1731995718820,1e-07,91737.0,91736.0,0.76140433]
[1731995719043,1e-07,91737.0,91736.0,0.73340433]
[1731995719257,1e-07,91737.0,91736.0,0.54945337]
[1731995719486,1e-07,91737.0,91736.0,0.57745337]
[1731995719727,1e-07,91737.0,91736.0,0.56145337]
[1731995720166,1e-07,91737.0,91736.0,0.57745337]
[1731995720606,1e-07,91737.0,91736.0,0.50269045]
[1731995720820,1e-07,91737.0,91736.0,0.71348162]
[1731995721552,1e-07,91737.0,91736.0,0.68548162]
[1731995722205,1e-07,91737.0,91736.0,0.51869045]
[1731995722450,1e-07,91737.0,91736.0,0.49069045]
[1731995722676,1e-07,91737.0,91736.0,0.51869045]
[1731995723115,0.0489001,91737.0,91736.0,0.41185444]
[1731995723335,0.0489001,91737.0,91736.0,0.48661736]
[1731995723773,0.1267001,91737.0,91736.0,0.47061736]
[1731995723997,0.1267001,91737.0,91736.0,0.1527188]
[1731995724226,0.1267001,91737.0,91736.0,0.109008]
[1731995724440,0.1267001,91737.0,91736.0,0.119008]
[1731995724874,0.1267001,91737.0,91736.0,0.109008]
[1731995725103,1e-07,91737.0,91736.0,0.109008]
[1731995725321,1e-07,91737.0,91736.0,0.135008]
[1731995725559,1e-07,91737.0,91736.0,0.109008]
[1731995726021,1e-07,91737.0,91736.0,0.22207055]
[1731995726259,1e-07,91737.0,91736.0,0.32707055]
[1731995726480,1e-07,91737.0,91736.0,0.35407055]
[1731995726707,1e-07,91737.0,91736.0,0.34507055]
[1731995727149,1e-07,91737.0,91736.0,0.35307055]
[1731995727373,0.0004,91749.0,91736.0,0.33489856]
[1731995727595,0.0004,91749.0,91748.0,0.208994]
[1731995727824,0.0004,91749.0,91748.0,0.31805655]
[1731995728046,0.0004,91749.0,91748.0,0.49617204]
[1731995728259,0.0004,91749.0,91748.0,0.44566825]
[1731995728478,0.0004,91749.0,91748.0,0.54294773]
[1731995729163,0.0004,91749.0,91748.0,0.45966825]
[1731995730109,0.0004,91749.0,91748.0,0.55688238]
[1731995730761,0.0004,91749.0,91748.0,0.45966825]
[1731995731208,0.0004,91749.0,91748.0,0.6251248]
[1731995731440,0.16445655,91780.0,91748.0,0.6251248]
[1731995731441,0.25731879,91763.0,91762.0,0.208977]
[1731995731662,0.25731879,91763.0,91762.0,0.45565125]
[1731995731663,0.08803599,91763.0,91762.0,0.45565125]
[1731995732321,0.08803599,91763.0,91762.0,0.53520457]
[1731995732322,9.9e-07,91763.0,91762.0,0.53520457]
[1731995732532,9.9e-07,91763.0,91762.0,0.46765125]
[1731995732775,9.9e-07,91763.0,91762.0,0.55320457]
[1731995733009,9.9e-07,91763.0,91762.0,0.55820457]
[1731995733223,9.9e-07,91763.0,91762.0,0.61719974]
[1731995733431,9.9e-07,91763.0,91762.0,0.55820457]
[1731995733644,9.9e-07,91763.0,91762.0,1.27320457]
[1731995734078,9.9e-07,91763.0,91762.0,1.29520604]
[1731995734502,9.9e-07,91763.0,91762.0,1.32120604]
[1731995734717,9.9e-07,91769.0,91768.0,0.01]
[1731995734959,9.9e-07,91769.0,91768.0,0.32803255]
[1731995735200,9.9e-07,91769.0,91768.0,0.48261921]
[1731995735818,9.9e-07,91769.0,91768.0,0.40401921]
[1731995736038,9.9e-07,91769.0,91768.0,0.43901921]
[1731995736506,9.9e-07,91769.0,91768.0,0.43001921]
[1731995736755,9.9e-07,91769.0,91768.0,0.44601921]
[1731995736960,0.0005,91782.0,91774.0,0.108963]
[1731995737163,0.0005,91782.0,91774.0,0.51866057]
[1731995737379,0.0005,91782.0,91774.0,0.45563725]
[1731995738291,0.0005,91782.0,91774.0,0.48363725]
[1731995739620,0.0005,91782.0,91774.0,0.49963725]
[1731995740062,0.0005,91782.0,91774.0,0.54666057]
[1731995740228,0.0005,91782.0,91774.0,0.6046924]
[1731995740667,0.0005,91782.0,91774.0,0.5766924]
[1731995740880,0.0005,91782.0,91774.0,0.52766908]
[1731995741103,0.0005,91782.0,91774.0,0.6046924]
[1731995741327,0.0005,91782.0,91774.0,0.5766924]
[1731995741534,0.0005,91782.0,91774.0,0.6046924]
[1731995742391,0.0005,91782.0,91774.0,0.54166908]
[1731995743429,0.0146085,91775.0,91774.0,0.54166908]
[1731995749170,0.0146085,91775.0,91774.0,0.42260653]
[1731995749385,0.0979085,91775.0,91774.0,0.42260653]
[1731995749588,0.0146085,91775.0,91774.0,0.53166908]
[1731995750023,0.0146085,91775.0,91774.0,0.51766908]
[1731995750464,0.0146085,91775.0,91774.0,0.52866908]
[1731995750698,0.01333957,91775.0,91774.0,0.51066908]
[1731995750895,0.01333957,91775.0,91774.0,0.49966908]
[1731995751125,0.01333957,91775.0,91774.0,0.52766908]
[1731995751340,0.01333957,91775.0,91774.0,0.54166908]
[1731995752023,0.01333957,91775.0,91774.0,0.51366908]
[1731995752227,0.01333957,91775.0,91774.0,0.54166908]
[1731995752448,0.01333957,91775.0,91774.0,0.6046924]
[1731995752666,0.01333957,91775.0,91774.0,0.5906924]
[1731995752892,5.7e-07,91775.0,91774.0,0.55366908]
[1731995753121,0.0005,91782.0,91781.0,0.218955]
[1731995753338,0.0005,91782.0,91781.0,0.45562925]
[1731995753952,0.0005,91782.0,91781.0,0.51865238]
[1731995754382,0.0005,91782.0,91781.0,0.52565238]
[1731995754843,0.0005,91782.0,91781.0,0.54865238]
[1731995755056,0.0005,91782.0,91781.0,0.48562925]
[1731995756128,0.0013549,91782.0,91781.0,0.48562925]
[1731995756442,0.0013549,91782.0,91781.0,0.48998525]
[1731995757686,0.0013549,91782.0,91781.0,0.55300838]
[1731995760030,0.0013549,91782.0,91781.0,1.25300838]
[1731995760447,0.0013549,91782.0,91781.0,1.18998525]
[1731995761301,0.0013549,91782.0,91781.0,0.51124474]
[1731995764432,0.0013549,91782.0,91781.0,0.48562925]
[1731995764858,0.0013549,91782.0,91781.0,0.3765667]
[1731995767659,0.0013549,91782.0,91781.0,0.3695667]
[1731995767865,0.0013549,91782.0,91781.0,0.3465667]
[1731995768559,0.0013549,91782.0,91781.0,0.3655667]
[1731995769010,0.0013549,91782.0,91781.0,0.3465667]
[1731995769215,0.0013549,91782.0,91781.0,0.3575667]
[1731995769427,0.0013549,91782.0,91781.0,0.3645667]
[1731995769644,0.0013549,91782.0,91781.0,0.3545667]
[1731995769861,0.07143774,91782.0,91781.0,0.21513202]
[1731995770072,0.07143774,91782.0,91781.0,0.20813202]
[1731995770073,0.08143774,91782.0,91781.0,0.20813202]
[1731995770282,0.16033774,91782.0,91781.0,0.121955]
[1731995770504,0.16033774,91782.0,91781.0,0.110955]
[1731995770731,0.16033774,91782.0,91781.0,0.2365667]
[1731995770950,0.16033235,91782.0,91781.0,0.2505667]
[1731995771171,0.16033235,91782.0,91781.0,0.2365667]
[1731995771382,0.1299549,91782.0,91781.0,0.2365667]
[1731995771607,0.1319549,91782.0,91781.0,0.2365667]
[1731995772307,0.0530549,91782.0,91781.0,0.2365667]
[1731995773432,0.0530549,91782.0,91781.0,0.2395667]
[1731995773640,0.0510549,91782.0,91781.0,0.2395667]
[1731995773870,0.0510549,91782.0,91781.0,0.2555667]
[1731995774084,0.0013549,91782.0,91781.0,0.36462925]
[1731995775267,0.0013549,91782.0,91781.0,0.34862925]
[1731995775487,0.0013549,91782.0,91781.0,0.36462925]
[1731995775919,0.0013549,91782.0,91781.0,0.36162925]
[1731995776133,0.0013549,91782.0,91781.0,0.36462925]
[1731995776834,0.0013549,91782.0,91781.0,0.2555667]
[1731995777257,0.0013549,91782.0,91781.0,0.2395667]
[1731995777469,0.0013549,91782.0,91781.0,0.2555667]
[1731995777892,0.0013549,91782.0,91781.0,0.2395667]
[1731995778129,0.0013549,91782.0,91781.0,0.2555667]
[1731995778341,0.0013549,91782.0,91781.0,0.2395667]
[1731995778803,0.0013549,91782.0,91781.0,0.2525667]
[1731995779238,0.0013549,91782.0,91781.0,0.2555667]
[1731995779665,0.0013549,91782.0,91781.0,0.2525667]
[1731995779895,0.0013549,91782.0,91781.0,0.33694309]
[1731995780124,0.0013549,91782.0,91781.0,0.33865269]
[1731995780317,0.0013549,91782.0,91781.0,0.31475478]
[1731995780560,0.0013549,91782.0,91781.0,0.28875478]
[1731995780790,0.0013549,91782.0,91781.0,0.29175478]
[1731995781016,0.0013549,91782.0,91781.0,0.30775478]
[1731995781256,0.0013549,91782.0,91781.0,0.29175478]
[1731995781475,0.0013549,91782.0,91781.0,0.31075478]
[1731995781689,0.0013549,91782.0,91781.0,0.19437839]
[1731995781909,0.0013549,91782.0,91781.0,0.28880045]
[1731995782355,0.0013549,91782.0,91781.0,0.29380045]
[1731995782993,0.0013549,91782.0,91781.0,0.30980045]
[1731995783438,0.0013549,91782.0,91781.0,0.29380045]
[1731995783708,0.0013549,91782.0,91781.0,0.31280045]
[1731995783954,0.0013549,91782.0,91781.0,0.28880045]
[1731995784408,0.0013549,91782.0,91781.0,0.30480045]
[1731995784662,0.0013549,91782.0,91781.0,0.20737839]
[1731995784881,0.0013549,91782.0,91781.0,0.19137839]
[1731995785300,0.0013549,91782.0,91781.0,0.19437839]
[1731995786149,0.0013549,91782.0,91781.0,0.21337839]
[1731995786382,0.0013549,91782.0,91781.0,0.19137839]
[1731995786595,0.0013549,91782.0,91781.0,0.19437839]
[1731995786837,0.0013549,91782.0,91781.0,0.21037839]
[1731995787055,0.0013549,91782.0,91781.0,0.19437839]
[1731995787272,0.0013549,91782.0,91781.0,0.21737839]
[1731995787516,0.0013549,91782.0,91781.0,0.1366646]
[1731995787727,0.0013549,91782.0,91781.0,0.1136646]
[1731995787937,0.0013549,91782.0,91781.0,0.1296646]
[1731995788391,0.0013549,91782.0,91781.0,0.1266646]
[1731995788610,0.0013549,91782.0,91781.0,0.1316646]
[1731995789053,0.0013549,91782.0,91781.0,0.22408789]
[1731995789259,0.0013549,91782.0,91781.0,0.21108789]
[1731995789701,0.0013549,91782.0,91781.0,0.23208789]
[1731995789911,0.0013549,91782.0,91781.0,0.21108789]
[1731995790089,0.0013549,91782.0,91781.0,0.22708789]
[1731995790341,0.0013549,91782.0,91781.0,0.1296646]
[1731995790548,0.0013549,91782.0,91781.0,0.1136646]
[1731995790761,0.0013549,91782.0,91781.0,0.1346646]
[1731995791233,0.0013549,91782.0,91781.0,0.1106646]
[1731995791462,0.0013549,91782.0,91781.0,0.29478731]
[1731995791674,0.0013549,91782.0,91781.0,0.19737839]
[1731995791887,0.0013549,91782.0,91781.0,0.28878809]
[1731995792326,0.0013549,91782.0,91781.0,0.29478809]
[1731995792537,0.0823549,91782.0,91781.0,0.1326646]
[1731995792782,0.0823549,91782.0,91781.0,0.1166646]
[1731995793201,0.0823549,91782.0,91781.0,0.1306646]
[1731995793426,0.0823549,91782.0,91781.0,0.1166646]
[1731995793649,0.0823549,91782.0,91781.0,0.1106646]
[1731995793929,0.0823549,91782.0,91781.0,0.1156646]
[1731995794138,0.0823549,91782.0,91781.0,0.1106646]
[1731995794353,0.0823549,91782.0,91781.0,0.1156646]
[1731995795061,0.0823549,91782.0,91781.0,0.1176646]
[1731995795498,0.0823549,91782.0,91781.0,0.1106646]
[1731995795935,0.0823549,91782.0,91781.0,0.1136646]
[1731995796148,0.0823549,91782.0,91781.0,0.1106646]
[1731995796384,0.0823549,91782.0,91781.0,0.1116646]
[1731995798886,0.1374549,91782.0,91781.0,0.0027096]
[1731995799066,0.1578567,91782.0,91781.0,0.0017096]
[1731995799345,0.1815017,91782.0,91781.0,0.1106646]
[1731995799559,0.1478567,91782.0,91781.0,0.1106646]
[1731995799781,0.0013549,91782.0,91781.0,0.1106646]
[1731995800018,0.0033549,91782.0,91781.0,0.1106646]
[1731995800246,0.0013549,91782.0,91781.0,0.30807454]
[1731995800478,0.0033549,91782.0,91781.0,0.2106646]
[1731995800952,0.0013549,91782.0,91781.0,0.2106646]
[1731995801825,0.0013549,91782.0,91781.0,0.2176646]
[1731995802289,0.0013549,91782.0,91781.0,0.41848449]
[1731995802529,0.0013549,91782.0,91781.0,0.40548449]
[1731995802739,0.0013549,91782.0,91781.0,0.51019828]
[1731995802974,0.0013549,91782.0,91781.0,0.53495242]
[1731995803200,0.0013549,91782.0,91781.0,0.53990887]
[1731995803420,0.0013549,91782.0,91781.0,0.86903373]
[1731995803644,0.0013549,91782.0,91781.0,0.61950887]
[1731995803886,0.0013549,91782.0,91781.0,0.63850887]
[1731995804329,0.0013549,91782.0,91781.0,0.79929073]
[1731995804754,0.0013549,91782.0,91781.0,0.71357694]
[1731995804965,0.0013549,91782.0,91781.0,1.00579996]
[1731995805197,0.0013549,91782.0,91781.0,0.69457694]
[1731995805486,0.0013549,91782.0,91781.0,0.71757694]
[1731995805690,0.0013549,91782.0,91781.0,0.70157694]
[1731995806134,0.0013549,91782.0,91781.0,0.72457694]
[1731995807211,0.0013549,91782.0,91781.0,0.56314936]
[1731995807441,0.0013549,91782.0,91781.0,0.72457694]
[1731995808726,0.0013549,91782.0,91781.0,0.73357694]
[1731995809191,0.0013549,91782.0,91781.0,0.72257694]
[1731995809386,0.0013549,91782.0,91781.0,0.73357694]
[1731995811894,0.0008545,91784.0,91783.0,0.218952]
[1731995812118,0.0008545,91784.0,91783.0,0.35978262]
[1731995812360,0.0004,91789.0,91788.0,0.45867358]
[1731995812560,0.00112,91796.0,91795.0,0.38036558]
[1731995812769,0.00112,91796.0,91795.0,0.48942813]
[1731995813277,0.00112,91796.0,91795.0,0.78822813]
[1731995813495,1e-06,91796.0,91795.0,0.98065933]
[1731995813705,0.16445655,91806.0,91805.0,0.218926]
[1731995813917,0.16445655,91806.0,91805.0,0.40870234]
[1731995814131,0.0008544,91813.0,91808.0,0.01]
[1731995814354,0.0008544,91813.0,91808.0,0.40869834]
[1731995814582,0.0008544,91813.0,91808.0,0.6518045]
[1731995814803,0.0008544,91813.0,91808.0,0.40869834]
[1731995815013,0.0008544,91813.0,91808.0,0.6518045]
[1731995815461,0.0008544,91813.0,91808.0,0.63309594]
[1731995815908,0.0008544,91813.0,91808.0,0.35798455]
[1731995816135,0.0008544,91813.0,91808.0,0.43869834]
[1731995816351,0.0012548,91809.0,91808.0,0.67976203]
[1731995816808,0.0012548,91809.0,91808.0,0.67975888]
[1731995817023,0.0012548,91809.0,91808.0,0.48543634]
[1731995817256,0.0012548,91809.0,91808.0,0.47543634]
[1731995817497,0.0012548,91809.0,91808.0,0.36637379]
[1731995818166,0.0012548,91809.0,91808.0,0.35937379]
[1731995818606,0.0012548,91809.0,91808.0,0.3871914]
[1731995819539,0.0464548,91809.0,91808.0,0.3981914]
[1731995819742,0.0464548,91809.0,91808.0,0.3911914]
[1731995819957,0.0464548,91809.0,91808.0,0.3921914]
[1731995820603,0.0464548,91809.0,91808.0,0.3911914]
[1731995820893,0.0464548,91809.0,91808.0,0.25273961]
[1731995821102,0.0464548,91809.0,91808.0,0.25773961]
[1731995822195,0.0464548,91809.0,91808.0,0.3851914]
[1731995822411,0.0012548,91809.0,91808.0,0.3801914]
[1731995822639,0.0012548,91809.0,91808.0,0.48925395]
[1731995822883,0.0032548,91809.0,91808.0,0.48925395]
[1731995823540,0.0032548,91809.0,91808.0,0.49925395]
[1731995824177,0.0012548,91809.0,91808.0,0.49925395]
[1731995824470,0.0012548,91809.0,91808.0,0.50525395]
[1731995825141,0.0012548,91809.0,91808.0,0.50125395]
[1731995825539,0.0012548,91809.0,91808.0,0.51425395]
[1731995825797,0.0012548,91809.0,91808.0,0.49925395]
[1731995826243,0.0012548,91809.0,91808.0,0.50525395]
[1731995826672,0.0012548,91809.0,91808.0,0.50325395]
[1731995826881,0.0012548,91809.0,91808.0,0.50525395]
[1731995827352,0.0012548,91809.0,91808.0,0.50325395]
[1731995827562,0.0012548,91809.0,91808.0,0.49925395]
[1731995827969,0.0012548,91809.0,91808.0,0.51225395]
[1731995828176,0.0012548,91809.0,91808.0,0.49925395]
[1731995828422,0.0012548,91809.0,91808.0,0.50325395]
[1731995828847,0.0012548,91809.0,91808.0,0.49925395]
[1731995829023,0.0012548,91809.0,91808.0,0.51225395]
[1731995829517,0.0012548,91809.0,91808.0,0.51425395]
[1731995830156,0.0012548,91809.0,91808.0,0.51225395]
[1731995830819,0.0012548,91809.0,91808.0,0.25473961]
[1731995831033,0.0012548,91809.0,91808.0,0.16773961]
[1731995831034,0.0817548,91809.0,91808.0,0.16773961]
[1731995831244,0.0817548,91809.0,91808.0,0.15473961]
[1731995831730,0.0817548,91809.0,91808.0,0.16773961]
[1731995831951,0.1294548,91809.0,91808.0,0.110922]
[1731995832185,0.1294548,91809.0,91808.0,0.005]
[1731995832399,0.1294548,91809.0,91808.0,0.113922]
[1731995832612,0.1498087,91809.0,91808.0,0.111922]
[1731995832820,0.1294548,91809.0,91808.0,0.113922]
[1731995833467,0.14981231,91809.0,91808.0,0.113922]
[1731995833679,0.14981231,91809.0,91808.0,0.005]
[1731995833680,0.15981231,91809.0,91808.0,0.005]
[1731995833887,0.15981231,91809.0,91801.0,0.21786]
[1731995833888,0.15981231,91809.0,91807.0,0.108923]
[1731995834102,0.1404548,91809.0,91808.0,0.108922]
[1731995834613,0.1394548,91809.0,91808.0,0.108922]
[1731995834857,0.1404548,91809.0,91808.0,0.108922]
[1731995835076,0.1394548,91809.0,91808.0,0.108922]
[1731995835286,0.1404548,91809.0,91808.0,0.108922]
[1731995835704,0.16081287,91809.0,91808.0,0.108922]
[1731995835943,0.1404548,91809.0,91808.0,0.108922]
[1731995836156,0.16081274,91809.0,91808.0,0.108922]
[1731995836373,0.1404548,91809.0,91808.0,0.108922]
[1731995836787,0.16081257,91809.0,91808.0,0.108922]
[1731995837009,0.1394548,91809.0,91808.0,0.108922]
[1731995837498,0.1394548,91809.0,91808.0,0.112922]
[1731995837923,0.0817548,91809.0,91808.0,0.22598455]
[1731995838152,0.0012548,91809.0,91808.0,0.32798455]
[1731995838371,0.0012548,91809.0,91808.0,0.41263684]
[1731995838808,0.0012548,91809.0,91808.0,0.50972518]
[1731995839019,0.0012548,91809.0,91808.0,0.41263684]
[1731995839447,0.0012548,91809.0,91808.0,0.50971206]
[1731995839674,0.0012548,91809.0,91808.0,0.49328913]
[1731995839884,0.0012548,91809.0,91808.0,0.63892164]
[1731995840107,0.0012548,91809.0,91808.0,0.63492164]
[1731995840315,0.0012548,91809.0,91808.0,0.49328913]
[1731995840768,0.0012548,91809.0,91808.0,0.41263684]
[1731995841012,0.0012548,91809.0,91808.0,0.55823937]
[1731995841235,0.0012548,91809.0,91808.0,0.40863684]
[1731995841447,0.0012548,91809.0,91808.0,0.43163684]
[1731995841647,0.0012548,91809.0,91808.0,0.57725324]
[1731995841851,0.0012548,91809.0,91808.0,0.40863684]
[1731995842097,0.0012548,91809.0,91808.0,0.5612522]
[1731995842305,0.0012548,91809.0,91808.0,0.41563684]
[1731995842512,0.0012548,91809.0,91808.0,0.5542572]
[1731995842937,0.0012548,91809.0,91808.0,0.5612572]
[1731995843164,0.0012548,91809.0,91808.0,0.43863684]
[1731995843422,0.0012548,91809.0,91808.0,0.50360491]
[1731995843673,0.0012548,91809.0,91808.0,0.5842572]
[1731995843916,0.0012548,91809.0,91808.0,0.43863684]
[1731995845943,0.0012548,91809.0,91808.0,0.63290755]
[1731995846170,8e-07,91809.0,91808.0,0.71355984]
[1731995846606,8e-07,91809.0,91808.0,0.51928913]
[1731995847062,8e-07,91809.0,91808.0,0.71355984]
[1731995847503,8e-07,91809.0,91808.0,0.76226065]
[1731995847723,8e-07,91809.0,91808.0,0.55098305]
[1731995847947,8e-07,91809.0,91808.0,0.77225732]
[1731995848167,8e-07,91809.0,91808.0,0.64338301]
[1731995848393,2e-07,91813.0,91812.0,0.118918]
[1731995848620,2e-07,91813.0,91812.0,0.32798055]
[1731995849745,2e-07,91813.0,91812.0,0.34598055]
[1731995850425,2e-07,91813.0,91812.0,0.58897252]
[1731995851367,2e-07,91813.0,91812.0,0.34598055]
[1731995851584,2e-07,91813.0,91812.0,0.58901993]
[1731995852215,2e-07,91813.0,91812.0,0.34598055]
[1731995852449,2e-07,91813.0,91812.0,0.58901993]
[1731995853320,2e-07,91813.0,91812.0,0.58903264]
[1731995854222,2e-07,91813.0,91812.0,0.34598055]
[1731995855140,2e-07,91813.0,91812.0,0.58905249]
[1731995855356,2e-07,91813.0,91812.0,0.39040346]
[1731995855589,0.1255002,91813.0,91812.0,0.39040346]
[1731995855795,0.1255002,91813.0,91812.0,0.46105575]
[1731995856883,0.1255002,91813.0,91812.0,0.47105575]
[1731995857360,0.1255002,91813.0,91812.0,0.66555158]
[1731995857613,2e-07,91813.0,91812.0,0.66555158]
[1731995859570,2e-07,91813.0,91812.0,0.65055158]
[1731995859931,2e-07,91813.0,91812.0,0.66555158]
[1731995860135,2e-07,91813.0,91812.0,0.65055158]
[1731995860312,2e-07,91813.0,91812.0,0.64761395]
[1731995860705,2e-07,91813.0,91812.0,0.66361395]
[1731995861182,2e-07,91813.0,91812.0,0.66061395]
[1731995861400,2e-07,91813.0,91812.0,0.66261395]
[1731995864057,2e-07,91813.0,91812.0,0.7112535]
[1731995864294,2e-07,91813.0,91812.0,0.46805575]
[1731995864962,2e-07,91813.0,91812.0,0.66261303]
[1731995865196,0.1281002,91813.0,91812.0,0.65261303]
[1731995865413,0.1281002,91813.0,91812.0,0.3489932]
[1731995866985,0.1281002,91813.0,91812.0,0.3359932]
[1731995867204,0.1281002,91813.0,91812.0,0.26734091]
[1731995867438,0.14847881,91813.0,91812.0,0.26934091]
[1731995867662,0.14847881,91813.0,91812.0,0.3499932]
[1731995867867,0.14847881,91813.0,91812.0,0.3479932]
[1731995868329,0.14847881,91813.0,91812.0,0.3509932]
[1731995868540,0.14847881,91813.0,91812.0,0.3369932]
[1731995868722,0.14847881,91813.0,91812.0,0.3339932]